bitfinex/quotes_SOLUSD_20251125
["timestamp","ask_amount","ask_price","bid_price","bid_amount"]
[1764033801695,0.71,138.93,138.91,3.18]
[1764033801914,3.5007972,138.93,138.9,71.30994492]
[1764033802122,10.69868338,138.93,138.89,3.18]
[1764033802290,0.71,138.92,138.89,3.18]
[1764033802691,2.7907972,138.9,138.86,0.7]
[1764033802895,2.7907972,138.89,138.87,11.98994492]
[1764033803206,0.72,138.92,138.87,11.98994492]
[1764033803512,3.5107972,138.92,138.88,0.7]
[1764033803818,3.5107972,138.92,138.89,3.18]
[1764033804006,0.72,138.91,138.89,3.18]
[1764033804621,2.7907972,138.92,138.89,3.18]
[1764033804797,0.72,138.91,138.89,3.18]
[1764033808016,3.5107972,138.91,138.89,3.18]
[1764033808699,0.72,138.91,138.89,3.18]
[1764033809009,10.70868338,138.93,138.89,3.88]
[1764033809315,0.72,138.92,138.89,3.88]
[1764033809527,2.7907972,138.91,138.89,3.18]
[1764033809867,2.7907972,138.9,138.88,3.18]
[1764033810196,0.72,138.89,138.88,3.18]
[1764033810395,3.5107972,138.89,138.88,65.68]
[1764033811321,3.5107972,138.89,138.88,62.5]
[1764033812708,10.7107396,138.89,138.88,62.5]
[1764033813625,3.5107972,138.89,138.86,8.80994492]
[1764033813832,0.72,138.89,138.86,8.80994492]
[1764033816206,0.72,138.89,138.86,9.50994492]
[1764033816904,3.5107972,138.89,138.86,9.50994492]
[1764033818932,3.5107972,138.89,138.86,8.80994492]
[1764033819534,3.5107972,138.89,138.86,71.30994492]
[1764033820432,16.308864,138.92,138.86,71.30994492]
[1764033820734,16.308864,138.92,138.88,8.80994492]
[1764033820917,16.308864,138.92,138.89,3.18]
[1764033821234,16.308864,138.92,138.89,73.57993014]
[1764033821618,2.7907972,138.93,138.9,0.7]
[1764033821934,19.8196612,138.93,138.9,0.7]
[1764033822129,2.7907972,138.91,138.89,62.5]
[1764033822329,2.7907972,138.9,138.86,66.38]
[1764033822514,2.7907972,138.89,138.86,62.5]
[1764033822712,2.7907972,138.87,138.85,62.5]
[1764033823222,3.5107972,138.88,138.85,62.5]
[1764033824531,0.72,138.87,138.85,62.5]
[1764033824734,3.5107972,138.88,138.85,62.5]
[1764033825831,0.72,138.9,138.86,3.88]
[1764033826028,2.7907972,138.88,138.86,3.18]
[1764033826332,2.7907972,138.88,138.85,65.68]
[1764033826521,3.5107972,138.88,138.85,65.68]
[1764033826935,3.5107972,138.88,138.85,66.38]
[1764033828332,0.72,138.88,138.85,66.38]
[1764033828522,2.7907972,138.89,138.86,0.7]
[1764033828722,3.5107972,138.89,138.86,0.7]
[1764033828919,9.99039472,138.9,138.86,0.7]
[1764033829127,2.7907972,138.89,138.86,0.7]
[1764033829325,3.5107972,138.89,138.85,73.58194296]
[1764033830524,3.5107972,138.89,138.86,0.7]
[1764033831335,0.72,138.89,138.86,0.7]
[1764033831635,3.5107972,138.89,138.86,8.80994492]
[1764033832436,0.72,138.89,138.86,9.50994492]
[1764033832639,16.308864,138.89,138.87,0.66]
[1764033833431,16.998864,138.89,138.86,16.01133855]
[1764033833636,16.998864,138.89,138.86,16.67133855]
[1764033833637,0.69,138.89,138.86,16.67133855]
[1764033835243,2.7907972,138.9,138.86,16.01133855]
[1764033835541,0.67,138.89,138.86,16.71133855]
[1764033835727,0.67,138.92,138.88,8.80994492]
[1764033835927,2.7907972,138.89,138.88,62.5]
[1764033836150,2.7907972,138.89,138.86,11.98994492]
[1764033836457,2.7907972,138.88,138.86,11.98994492]
[1764033837035,0.67,138.89,138.86,12.68994492]
[1764033837230,3.4607972,138.89,138.86,12.68994492]
[1764033837750,23.50799059,138.91,138.82,7.90357297]
[1764033837751,2.7907972,138.87,138.82,7.90357297]
[1764033837967,2.7907972,138.86,138.82,73.58357297]
[1764033838254,2.7907972,138.85,138.83,8.80994492]
[1764033838653,2.7907972,138.86,138.83,9.50994492]
[1764033839548,3.4607972,138.86,138.83,9.50994492]
[1764033841263,2.7907972,138.86,138.83,8.80994492]
[1764033841466,0.67,138.85,138.83,8.80994492]
[1764033841649,3.4607972,138.86,138.83,9.50994492]
[1764033843158,0.67,138.85,138.83,8.80994492]
[1764033843365,0.67,138.85,138.83,71.30994492]
[1764033843533,3.4607972,138.86,138.83,71.30994492]
[1764033843856,0.67,138.86,138.83,79.21292275]
[1764033844052,3.4607972,138.87,138.84,0.7]
[1764033844256,2.7907972,138.86,138.83,72.00994492]
[1764033844883,26.68843259,138.9,138.81,3.18]
[1764033844884,2.7907972,138.84,138.81,3.18]
[1764033845153,2.7907972,138.82,138.79,12.68994492]
[1764033845654,3.4607972,138.82,138.79,12.68994492]
[1764033845873,7.20200514,138.86,138.79,11.98994492]
[1764033846161,19.0996612,138.85,138.8,0.7]
[1764033846537,4.36728541,138.84,138.8,0.7]
[1764033846752,0.67,138.84,138.8,0.7]
[1764033846961,21.34614941,138.85,138.8,0.7]
[1764033847439,21.34614941,138.85,138.8,7.90425762]
[1764033847940,4.36728541,138.83,138.81,3.18]
[1764033848140,4.36728541,138.82,138.78,0.7]
[1764033848451,4.36728541,138.79,138.77,8.80994492]
[1764033848659,5.03728541,138.79,138.77,8.80994492]
[1764033848855,5.03728541,138.79,138.76,3.18]
[1764033848856,5.03728541,138.78,138.76,3.18]
[1764033849368,5.03728541,138.78,138.75,8.80994492]
[1764033849664,4.36728541,138.77,138.75,11.98994492]
[1764033849962,4.36728541,138.76,138.73,8.80994492]
[1764033850262,4.36728541,138.75,138.73,8.80994492]
[1764033850460,4.36728541,138.75,138.73,9.50994492]
[1764033850662,5.03728541,138.75,138.73,8.80994492]
[1764033850847,5.03728541,138.74,138.71,9.00994492]
[1764033851185,4.36728541,138.74,138.71,12.88994492]
[1764033851369,25.21798765,138.79,138.71,9.00994492]
[1764033851370,5.03728541,138.73,138.71,9.00994492]
[1764033851676,4.36728541,138.73,138.71,9.00994492]
[1764033853087,5.03728541,138.73,138.71,0.2]
[1764033853294,4.36728541,138.72,138.71,0.2]
[1764033853977,5.03728541,138.72,138.71,0.2]
[1764033854582,20.67614941,138.72,138.71,0.2]
[1764033855785,5.03728541,138.72,138.71,0.2]
[1764033855993,20.67614941,138.72,138.71,0.2]
[1764033857400,21.34614941,138.72,138.71,0.2]
[1764033858478,16.308864,138.72,138.71,0.2]
[1764033858676,20.67614941,138.72,138.71,0.2]
[1764033858879,21.34614941,138.72,138.71,0.2]
[1764033859290,28.55491526,138.72,138.71,0.2]
[1764033859479,21.34614941,138.72,138.71,0.2]
[1764033859989,28.55491526,138.72,138.71,0.2]
[1764033862190,21.34614941,138.72,138.71,0.2]
[1764033862681,28.55491526,138.72,138.71,0.2]
[1764033864767,20.67614941,138.72,138.71,0.2]
[1764033864986,28.55491526,138.72,138.71,0.2]
[1764033865376,21.34614941,138.72,138.71,0.2]
[1764033865681,16.308864,138.7,138.69,0.2]
[1764033865878,23.85614941,138.7,138.69,0.2]
[1764033866087,24.52614941,138.7,138.69,0.2]
[1764033866803,31.73595474,138.7,138.69,0.2]
[1764033867981,28.55595474,138.7,138.69,0.2]
[1764033868298,31.73595474,138.7,138.69,0.2]
[1764033869573,34.62727715,138.7,138.69,0.2]
[1764033872699,7.87909314,138.72,138.69,0.88]
[1764033872903,4.36728541,138.7,138.69,0.2]
[1764033873203,11.57709074,138.7,138.69,0.2]
[1764033873388,12.24709074,138.7,138.69,0.2]
[1764033873586,15.13862216,138.7,138.69,0.2]
[1764033873794,10.77133675,138.7,138.69,0.2]
[1764033873997,15.42709074,138.7,138.69,0.2]
[1764033877492,31.73595474,138.7,138.69,0.2]
[1764033877806,15.42709074,138.7,138.69,0.2]
[1764033878001,12.24709074,138.7,138.69,0.2]
[1764033878204,15.42709074,138.7,138.69,0.2]
[1764033881303,11.57709074,138.7,138.69,0.2]
[1764033881492,23.85614941,138.7,138.69,0.88]
[1764033881696,20.67614941,138.7,138.69,0.88]
[1764033883008,20.67614941,138.7,138.69,0.2]
[1764033883805,27.88595474,138.7,138.69,0.2]
[1764033884007,28.55595474,138.7,138.69,0.2]
[1764033884186,31.73595474,138.7,138.69,0.2]
[1764033886711,27.88595474,138.7,138.69,0.2]
[1764033891504,20.67614941,138.7,138.69,0.2]
[1764033891701,27.88595474,138.7,138.69,0.2]
[1764033895224,20.67614941,138.7,138.69,0.2]
[1764033895897,27.88595474,138.7,138.69,0.2]
[1764033896908,28.59595474,138.7,138.69,0.2]
[1764033898339,12.28709074,138.7,138.69,0.2]
[1764033898542,36.80890493,138.93,138.69,33.16366432]
[1764033898852,18.02257278,138.84,138.79,4.36728541]
[1764033899145,4.36728541,138.9,138.83,20.67614941]
[1764033899346,4.36728541,138.91,138.84,3.24]
[1764033899533,4.36728541,138.91,138.87,16.308864]
[1764033899702,5.07728541,138.91,138.87,16.308864]
[1764033899905,0.71,138.9,138.87,16.308864]
[1764033900532,0.71,138.9,138.89,16.308864]
[1764033900833,0.71,138.96,138.9,8.80994492]
[1764033901131,11.57613594,138.94,138.91,12.04994492]
[1764033901331,12.28613594,138.95,138.91,12.04994492]
[1764033901535,0.71,138.95,138.91,12.04994492]
[1764033901744,0.1,138.97,138.94,27.88499994]
[1764033901910,0.1,138.97,138.95,8.80994492]
[1764033902105,0.1,138.97,138.94,3.24]
[1764033903716,11.67613594,138.97,138.94,3.24]
[1764033903919,12.38613594,138.97,138.94,3.24]
[1764033904143,12.28613594,138.96,138.94,3.24]
[1764033904311,11.57613594,138.96,138.94,3.24]
[1764033904511,12.28613594,138.96,138.94,3.24]
[1764033904827,0.1,138.97,138.9,8.80994492]
[1764033904828,12.28613594,138.95,138.9,8.80994492]
[1764033905010,12.28613594,138.95,138.91,3.24]
[1764033905206,12.28613594,138.94,138.91,3.24]
[1764033906137,11.57613594,138.92,138.88,8.80994492]
[1764033906436,11.57613594,138.9,138.86,3.24]
[1764033906610,11.57613594,138.9,138.86,12.04994492]
[1764033906810,12.28613594,138.9,138.86,3.24]
[1764033907233,11.57613594,138.89,138.86,3.24]
[1764033908021,11.57613594,138.88,138.86,3.24]
[1764033908217,11.57613594,138.87,138.82,18.77961811]
[1764033908415,11.57613594,138.87,138.84,3.24]
[1764033908728,22.96126267,138.89,138.85,8.80994492]
[1764033909131,7.36239867,138.91,138.85,77.96234359]
[1764033909342,23.67126267,138.91,138.87,8.80994492]
[1764033909527,22.96126267,138.91,138.87,12.04994492]
[1764033909832,6.65239867,138.9,138.87,12.04994492]
[1764033910744,6.65239867,138.93,138.87,74.54994492]
[1764033911037,6.65239867,138.92,138.87,74.54994492]
[1764033911210,6.65239867,138.91,138.87,74.54994492]
[1764033911415,6.65239867,138.9,138.88,3.24]
[1764033911821,6.65239867,138.9,138.84,23.5113419]
[1764033912042,6.65239867,138.89,138.85,12.04994492]
[1764033912236,7.36239867,138.9,138.85,19.25190683]
[1764033912913,6.65239867,138.89,138.85,12.04994492]
[1764033913120,6.65239867,138.88,138.85,12.04994492]
[1764033913633,6.65239867,138.88,138.85,3.24]
[1764033914641,6.65239867,138.88,138.85,12.04994492]
[1764033916347,7.36239867,138.89,138.85,12.04994492]
[1764033916846,14.5624715,138.89,138.85,12.04994492]
[1764033917532,0.71,138.88,138.85,12.04994492]
[1764033917931,7.36239867,138.88,138.85,12.04994492]
[1764033918946,0.71,138.88,138.85,12.04994492]
[1764033919151,16.308864,138.9,138.85,19.25192558]
[1764033919346,0.71,138.89,138.85,12.04994492]
[1764033919731,6.65239867,138.88,138.85,12.04994492]
[1764033920129,7.36239867,138.88,138.85,12.04994492]
[1764033920636,0.71,138.88,138.85,12.04994492]
[1764033921233,0.71,138.88,138.82,12.04994492]
[1764033921234,6.65239867,138.86,138.82,12.04994492]
[1764033921548,6.65239867,138.85,138.82,65.74]
[1764033921923,6.65239867,138.85,138.79,101.9]
[1764033921924,6.65239867,138.83,138.78,6.65239867]
[1764033922244,7.36239867,138.84,138.79,12.04994492]
[1764033922546,7.36239867,138.84,138.79,18.70234359]
[1764033922934,0.68,138.89,138.83,6.65239867]
[1764033923245,16.308864,138.89,138.84,18.70234359]
[1764033923931,7.33239867,138.89,138.84,12.04994492]
[1764033924351,7.33239867,138.89,138.84,19.2524562]
[1764033925145,0.68,138.88,138.84,19.2524562]
[1764033925658,7.33239867,138.9,138.84,25.90485487]
[1764033926149,6.65239867,138.85,138.74,86.03632971]
[1764033926326,6.65239867,138.82,138.77,7.20616848]
[1764033926529,6.65239867,138.81,138.79,8.80994492]
[1764033926726,7.20324077,138.83,138.79,8.80994492]
[1764033926930,6.65239867,138.82,138.79,8.80994492]
[1764033927129,7.33239867,138.82,138.79,8.80994492]
[1764033929141,7.33239867,138.83,138.79,16.01502568]
[1764033929650,0.68,138.82,138.79,71.30994492]
[1764033929823,7.33239867,138.82,138.79,71.30994492]
[1764033930528,0.68,138.82,138.79,71.30994492]
[1764033930854,13.85547809,138.83,138.79,71.30994492]
[1764033931028,0.68,138.82,138.79,71.30994492]
[1764033932634,7.33239867,138.82,138.79,71.30994492]
[1764033933346,0.68,138.83,138.79,78.5150053]
[1764033933554,7.33239867,138.83,138.79,78.5150053]
[1764033933730,7.33239867,138.83,138.79,74.52994492]
[1764033933929,6.65239867,138.81,138.79,62.5]
[1764033934129,6.65239867,138.81,138.78,3.22]
[1764033934334,6.65239867,138.81,138.76,85.1687186]
[1764033934335,0.68,138.8,138.76,78.51631993]
[1764033934539,7.33239867,138.8,138.77,3.22]
[1764033935032,6.65239867,138.82,138.78,8.80994492]
[1764033935238,0.68,138.81,138.78,8.80994492]
[1764033936157,6.65239867,138.79,138.76,65.72]
[1764033936562,0.68,138.78,138.76,65.72]
[1764033936938,7.33239867,138.78,138.76,3.22]
[1764033937356,0.68,138.77,138.74,8.80994492]
[1764033937562,0.68,138.77,138.7,6.65239867]
[1764033937563,6.65239867,138.76,138.7,6.65239867]
[1764033937843,6.65239867,138.75,138.71,3.22]
[1764033938332,7.33239867,138.74,138.7,8.80994492]
[1764033938560,7.33239867,138.74,138.7,12.02994492]
[1764033938736,0.68,138.73,138.7,12.02994492]
[1764033939661,0.68,138.73,138.7,19.23972008]
[1764033939864,0.68,138.73,138.7,12.02994492]
[1764033940056,0.68,138.73,138.7,19.23961531]
[1764033940564,0.68,138.77,138.71,8.80994492]
[1764033940731,7.33239867,138.77,138.72,7.20876585]
[1764033940931,14.53873301,138.77,138.72,7.20876585]
[1764033941155,7.33239867,138.76,138.72,7.20876585]
[1764033941345,7.33239867,138.76,138.71,16.01903762]
[1764033941657,0.68,138.75,138.71,16.01903762]
[1764033943941,7.33239867,138.75,138.71,16.01903762]
[1764033944235,7.33239867,138.75,138.71,78.51903762]
[1764033944435,0.68,138.75,138.71,78.51903762]
[1764033944857,0.68,138.74,138.71,78.51903762]
[1764033945028,6.65239867,138.76,138.71,78.51903762]
[1764033945029,0.68,138.75,138.71,78.51903762]
[1764033947476,7.33239867,138.77,138.71,85.17143629]
[1764033947762,7.33239867,138.76,138.71,78.51903762]
[1764033948137,0.68,138.75,138.71,78.51903762]
[1764033950473,0.68,138.77,138.71,78.51903762]
[1764033950678,0.68,138.77,138.71,96.54225151]
[1764033950975,3.47871266,138.77,138.71,96.54225151]
[1764033951159,2.79871266,138.76,138.71,96.54225151]
[1764033951478,0.68,138.76,138.71,96.54225151]
[1764033951780,0.68,138.75,138.71,96.54225151]
[1764033951960,0.68,138.75,138.71,71.30994492]
[1764033952278,0.68,138.75,138.71,78.51907726]
[1764033955278,3.47871266,138.75,138.72,3.22]
[1764033955459,7.88724692,138.75,138.72,3.22]
[1764033955785,0.65,138.74,138.72,3.22]
[1764033955983,0.65,138.74,138.72,65.72]
[1764033957282,0.72,138.74,138.72,65.72]
[1764033957485,2.79871266,138.73,138.72,62.5]
[1764033957657,2.79871266,138.73,138.69,74.72994492]
[1764033957858,2.79871266,138.7,138.69,0.2]
[1764033958292,3.51871266,138.7,138.69,0.2]
[1764033959162,0.72,138.7,138.69,0.2]
[1764033960386,3.51871266,138.7,138.69,0.2]
[1764033961488,2.79871266,138.71,138.69,0.2]
[1764033961702,0.72,138.7,138.69,0.2]
[1764033962689,3.51871266,138.7,138.69,0.2]
[1764033962894,0.72,138.76,138.7,8.80994492]
[1764033963108,10.42409192,138.81,138.72,11.60865758]
[1764033963399,0.72,138.8,138.76,8.80994492]
[1764033963601,0.72,138.8,138.76,12.02994492]
[1764033963965,0.72,138.82,138.78,8.80994492]
[1764033964160,0.72,138.82,138.78,11.60865758]
[1764033964364,2.79871266,138.84,138.78,11.60865758]
[1764033964580,3.51871266,138.84,138.78,11.60865758]
[1764033964896,3.51871266,138.84,138.79,7.20513005]
[1764033965393,0.72,138.83,138.79,7.20513005]
[1764033965592,19.82757666,138.85,138.8,8.80994492]
[1764033965802,0.72,138.85,138.8,11.60865758]
[1764033965980,10.00028383,138.86,138.8,11.60865758]
[1764033966180,0.72,138.85,138.8,11.60865758]
[1764033966370,3.51871266,138.85,138.8,8.80994492]
[1764033966574,0.72,138.85,138.8,15.4638979]
[1764033966782,0.72,138.85,138.81,7.20409192]
[1764033967174,0.72,138.85,138.8,22.66835088]
[1764033967394,7.37395298,138.85,138.8,16.0143979]
[1764033967687,0.72,138.85,138.8,22.66835088]
[1764033968082,17.028864,138.87,138.83,8.80994492]
[1764033968277,0.72,138.89,138.85,8.80994492]
[1764033969391,12.29762273,138.89,138.84,8.80994492]
[1764033969719,11.57762273,138.86,138.83,8.80994492]
[1764033970067,0.72,138.86,138.83,8.80994492]
[1764033972878,0.72,138.86,138.83,16.01297796]
[1764033973893,12.29762273,138.86,138.83,8.80994492]
[1764033974890,0.72,138.86,138.83,8.80994492]
[1764033976292,27.88648673,138.84,138.76,62.5]
[1764033976495,11.57762273,138.81,138.77,3.22]
[1764033976802,11.57762273,138.82,138.78,8.80994492]
[1764033976972,12.29762273,138.83,138.78,20.38756765]
[1764033977501,27.88648673,138.84,138.79,11.57762273]
[1764033977693,12.29762273,138.84,138.79,11.57762273]
[1764033977894,12.29762273,138.84,138.8,3.22]
[1764033978284,0.72,138.84,138.8,10.42458337]
[1764033978483,0.72,138.84,138.81,8.80994492]
[1764033978681,0.72,138.84,138.81,71.30994492]
[1764033978884,11.57762273,138.85,138.81,71.30994492]
[1764033979081,0.72,138.86,138.81,82.88756765]
[1764033979692,12.29762273,138.86,138.81,82.88756765]
[1764033980082,0.72,138.85,138.81,82.88756765]
[1764033980286,0.72,138.85,138.82,7.20357297]
[1764033980813,0.72,138.85,138.81,71.30994492]
[1764033980983,11.57762273,138.84,138.81,71.30994492]
[1764033981171,11.57762273,138.82,138.81,62.5]
[1764033981377,11.57762273,138.82,138.77,62.5]
[1764033981597,11.57762273,138.79,138.77,62.5]
[1764033981798,11.57762273,138.79,138.76,3.22]
[1764033982005,12.29762273,138.78,138.73,69.70812089]
[1764033982295,11.57762273,138.77,138.74,12.02994492]
[1764033982512,12.29762273,138.77,138.74,12.02994492]
[1764033982793,0.72,138.77,138.74,12.02994492]
[1764033983094,11.57762273,138.78,138.74,19.23761518]
[1764033983303,12.28762273,138.78,138.74,19.23761518]
[1764033983609,0.71,138.81,138.74,48.83455461]
[1764033983781,17.018864,138.81,138.76,8.80994492]
[1764033984100,28.59648673,138.81,138.77,3.22]
[1764033984475,0.71,138.8,138.77,10.42607188]
[1764033984675,16.308864,138.81,138.78,8.80994492]
[1764033984875,0.71,138.81,138.78,8.80994492]
[1764033986921,0.71,138.81,138.78,16.01558305]
[1764033988915,0.71,138.81,138.78,78.51558305]
[1764033989714,12.28762273,138.83,138.78,90.09320578]
[1764033989923,12.28762273,138.85,138.8,8.80994492]
[1764033990132,0.71,138.85,138.81,3.2]
[1764033990293,35.08811167,138.86,138.81,3.2]
[1764033990612,0.71,138.85,138.81,65.7]
[1764033991299,0.71,138.85,138.81,77.27762273]
[1764033992111,0.71,138.85,138.81,65.7]
[1764033992310,0.71,138.85,138.81,72.90404938]
[1764033993615,0.71,138.85,138.81,65.7]
[1764033993792,12.28762273,138.85,138.81,65.7]
[1764033993995,0.71,138.84,138.81,72.90408]
[1764033995716,12.28762273,138.86,138.81,84.48170273]
[1764033995918,0.71,138.86,138.82,20.38756765]
[1764033996096,0.71,138.86,138.82,27.5907249]
[1764033996298,11.57762273,138.88,138.83,11.57762273]
[1764033996597,0.71,138.87,138.83,65.7]
[1764033996901,12.28762273,138.87,138.83,65.7]
[1764033997499,0.71,138.86,138.83,65.7]
[1764033998720,19.508864,138.89,138.83,72.90298431]
[1764033999016,0.71,138.86,138.83,84.48060704]
[1764033999199,0.71,138.86,138.83,72.90298431]
[1764034000308,11.57762273,138.88,138.83,72.90298431]
[1764034000511,0.71,138.86,138.83,72.90298431]
[1764034001211,0.71,138.86,138.83,65.7]
[1764034001629,0.71,138.86,138.83,62.5]
[1764034001630,12.28762273,138.86,138.83,62.5]
[1764034001820,11.57762273,138.84,138.81,65.7]
[1764034002020,12.28762273,138.85,138.81,65.7]
[1764034002336,12.28762273,138.85,138.81,72.90403025]
[1764034002516,0.71,138.84,138.81,72.90403025]
[1764034006132,0.71,138.86,138.82,11.57762273]
[1764034006314,0.71,138.85,138.82,11.57762273]
[1764034006502,0.71,138.85,138.83,3.2]
[1764034006704,0.71,138.86,138.83,3.2]
[1764034006898,0.71,138.86,138.83,14.77762273]
[1764034007206,38.28664053,138.89,138.83,14.77762273]
[1764034007420,0.71,138.87,138.83,77.27762273]
[1764034008313,0.71,138.87,138.83,84.48046146]
[1764034008532,0.71,138.87,138.84,20.38756765]
[1764034009034,0.71,138.87,138.84,8.80994492]
[1764034012615,0.71,138.87,138.84,71.30994492]
[1764034013320,0.71,138.87,138.84,78.5124588]
[1764034014221,0.71,138.87,138.84,90.09008153]
[1764034014531,0.71,138.87,138.84,81.7124588]
[1764034017032,0.71,138.87,138.84,74.50994492]
[1764034017334,0.71,138.87,138.84,62.5]
[1764034017335,11.57762273,138.86,138.84,62.5]
[1764034017503,11.57762273,138.86,138.82,12.00994492]
[1764034017704,0.71,138.85,138.82,12.00994492]
[1764034019109,0.67,138.87,138.82,30.79082355]
[1764034019313,0.67,138.86,138.82,30.79082355]
[1764034020531,0.67,138.88,138.84,8.80994492]
[1764034020707,35.08648762,138.89,138.84,12.00994492]
[1764034020908,0.67,138.87,138.84,74.50994492]
[1764034021320,0.67,138.87,138.84,81.71239104]
[1764034021729,0.1,138.9,138.87,8.80994492]
[1764034022025,0.1,138.9,138.89,20.38756765]
[1764034022230,0.1,138.9,138.89,23.58756765]
[1764034022733,1e-08,138.9,138.89,90.81880892]
[1764034022918,1e-08,138.9,138.89,102.39643165]
[1764034023233,1e-08,138.9,138.89,109.59637405]
[1764034026742,1e-08,138.9,138.89,110.31636829]
[1764034027757,1e-08,138.9,138.89,47.81636829]
[1764034029238,1e-08,138.9,138.89,43.89637405]
[1764034029445,1e-08,138.9,138.89,47.09637405]
[1764034030343,1e-08,138.9,138.89,30.78751005]
[1764034030542,1e-08,138.9,138.89,22.00040859]
[1764034031247,1e-08,138.9,138.89,16.00988732]
[1764034031426,0.67000001,138.9,138.89,71.30994492]
[1764034031627,0.67000001,138.9,138.89,3.2]
[1764034033149,3.46052128,138.9,138.86,8.80994492]
[1764034033329,3.46052127,138.89,138.86,3.2]
[1764034033747,0.67,138.88,138.86,3.2]
[1764034034124,0.67,138.88,138.85,12.00994492]
[1764034034330,0.67,138.88,138.85,3.2]
[1764034034541,10.6612778,138.88,138.84,3.2]
[1764034035058,0.67,138.87,138.84,3.2]
[1764034035238,3.46052127,138.87,138.83,8.80994492]
[1764034035440,3.46052127,138.87,138.84,3.2]
[1764034035648,0.67,138.86,138.84,3.2]
[1764034036037,0.67,138.86,138.84,5.99052127]
[1764034036226,16.308864,138.88,138.84,5.99052127]
[1764034036425,0.67,138.87,138.85,8.80994492]
[1764034036641,0.67,138.89,138.85,18.80225892]
[1764034037237,0.67,138.89,138.85,16.01173765]
[1764034037439,3.46052127,138.89,138.85,16.01173765]
[1764034037945,0.67,138.88,138.85,16.01173765]
[1764034040344,0.67,138.88,138.85,8.80994492]
[1764034042070,0.67,138.88,138.84,3.2]
[1764034042225,0.67,138.88,138.84,2.79052127]
[1764034042578,0.67,138.88,138.84,5.99052127]
[1764034042867,0.67,138.88,138.81,25.21401444]
[1764034042868,2.79052127,138.85,138.81,8.80994492]
[1764034043029,2.79052127,138.82,138.78,62.5]
[1764034043355,16.308864,138.85,138.79,8.80994492]
[1764034043356,2.79052127,138.83,138.79,8.80994492]
[1764034043552,0.67,138.84,138.81,8.80994492]
[1764034043852,3.46052127,138.86,138.82,7.20357297]
[1764034044231,0.67,138.85,138.82,7.20357297]
[1764034044652,2.79052127,138.88,138.83,11.60046619]
[1764034044854,0.67,138.86,138.84,3.2]
[1764034047038,0.67,138.86,138.84,10.40245861]
[1764034047342,22.96084955,138.89,138.84,10.40245861]
[1764034047541,0.67,138.86,138.84,10.40245861]
[1764034048333,0.67,138.86,138.84,3.2]
[1764034049151,1e-08,138.9,138.85,8.80994492]
[1764034049358,0.67,138.88,138.85,8.80994492]
[1764034051654,0.67,138.89,138.86,7.20149791]
[1764034051856,0.67,138.88,138.86,7.20149791]
[1764034053571,0.67,138.88,138.87,3.2]
[1764034054259,7.32198555,138.88,138.85,65.7]
[1764034054454,6.65198555,138.87,138.85,62.5]
[1764034054755,7.32198555,138.87,138.85,62.5]
[1764034054961,0.67,138.86,138.85,62.5]
[1764034055266,7.32198555,138.86,138.78,6.65198555]
[1764034055438,6.65198555,138.83,138.77,7.20616848]
[1764034055759,6.65198555,138.82,138.78,3.2]
[1764034055956,6.65198555,138.81,138.77,7.20616848]
[1764034056160,7.32198555,138.81,138.78,3.2]
[1764034056337,0.67,138.82,138.77,9.85198555]
[1764034056543,0.67,138.81,138.78,8.80994492]
[1764034058370,6.65198555,138.79,138.75,8.80994492]
[1764034058560,6.65198555,138.79,138.76,3.2]
[1764034058763,0.67,138.78,138.76,3.2]
[1764034066060,14.52765256,138.78,138.75,62.5]
[1764034066460,0.67,138.77,138.75,62.5]
[1764034068355,14.52821036,138.77,138.75,62.5]
[1764034068552,0.67,138.77,138.75,62.5]
[1764034068755,0.67,138.76,138.75,62.5]
[1764034068969,0.67,138.76,138.74,65.7]
[1764034070970,0.67,138.78,138.74,72.90771862]
[1764034071177,0.67,138.77,138.74,72.90771862]
[1764034071867,0.67,138.77,138.74,65.7]